bitfinex/quotes_SOLUSD_20241220
["timestamp","ask_amount","ask_price","bid_price","bid_amount"]
[1734715403923,23.776884,190.76,190.67,26.37439726]
[1734715404625,23.776884,190.74,190.67,26.37439726]
[1734715407349,26.37439726,190.73,190.65,26.37439726]
[1734715407558,23.776884,190.72,190.65,26.37439726]
[1734715407851,23.776884,190.74,190.65,26.37439726]
[1734715408050,23.776884,190.74,190.67,26.37439726]
[1734715408355,23.776884,190.74,190.69,26.37439726]
[1734715408934,23.776884,190.74,190.67,26.37439726]
[1734715409949,23.776884,190.74,190.65,26.37439726]
[1734715410335,26.37439726,190.73,190.65,26.37439726]
[1734715410658,23.776884,190.72,190.63,26.37439726]
[1734715412373,23.776884,190.72,190.65,26.37439726]
[1734715413531,26.37439726,190.77,190.69,26.37439726]
[1734715413725,26.37439726,190.79,190.69,26.37439726]
[1734715413957,26.37439726,190.77,190.69,26.37439726]
[1734715414343,26.37439726,190.75,190.65,26.37439726]
[1734715414842,23.776884,190.74,190.65,26.37439726]
[1734715415051,23.776884,190.74,190.67,26.37439726]
[1734715417665,20.0,190.7,190.61,6.3592]
[1734715417862,23.776884,190.66,190.57,28.4324696]
[1734715418184,23.776884,190.64,190.57,26.37439726]
[1734715419237,26.37439726,190.61,190.51,139.2171]
[1734715419535,23.776884,190.6,190.52,26.37439726]
[1734715421644,26.37439726,190.63,190.54,26.37439726]
[1734715421948,23.776884,190.62,190.56,26.37439726]
[1734715422143,26.37439726,190.69,190.6,26.37439726]
[1734715422336,26.37439726,190.7,190.6,26.37439726]
[1734715422738,26.37439726,190.64,190.55,26.37439726]
[1734715423848,23.776884,190.63,190.55,26.37439726]
[1734715426268,23.776884,190.61,190.53,26.37439726]
[1734715426875,23.776884,190.59,190.51,32.47479726]
[1734715427844,23.776884,190.61,190.53,26.37439726]
[1734715428372,23.776884,190.61,190.51,32.47479726]
[1734715428865,23.776884,190.59,190.51,32.47479726]
[1734715429061,23.776884,190.59,190.51,6.1004]
[1734715429251,23.776884,190.59,190.49,26.37439726]
[1734715430466,50.15128126,190.6,190.51,26.37439726]
[1734715430657,23.776884,190.6,190.53,26.37439726]
[1734715431169,26.37439726,190.62,190.53,26.37439726]
[1734715431548,28.02289726,190.66,190.57,26.37439726]
[1734715431747,28.02289726,190.66,190.5,27.16147441]
[1734715431748,26.37439726,190.68,190.59,26.37439726]
[1734715433116,23.776884,190.67,190.59,26.37439726]
[1734715434467,26.37439726,190.7,190.61,26.37439726]
[1734715434852,26.37439726,190.74,190.65,26.37439726]
[1734715436275,23.776884,190.73,190.65,26.37439726]
[1734715437877,26.37439726,190.7,190.61,157.97439726]
[1734715438071,26.37439726,190.7,190.61,26.37439726]
[1734715438379,23.776884,190.69,190.61,26.37439726]
[1734715438583,23.776884,190.69,190.63,26.37439726]
[1734715439978,26.37439726,190.74,190.63,26.37439726]
[1734715440183,26.37439726,190.76,190.67,26.37439726]
[1734715440360,26.37439726,190.74,190.65,26.37439726]
[1734715441381,26.37439726,190.76,190.67,26.37439726]
[1734715442275,26.37439726,190.78,190.69,26.37439726]
[1734715442980,1.6632,190.79,190.67,26.37439726]
[1734715442981,26.37439726,190.76,190.67,26.37439726]
[1734715443177,26.37439726,190.74,190.65,26.37439726]
[1734715443378,23.776884,190.73,190.65,26.37439726]
[1734715444164,23.776884,190.71,190.63,32.47379726]
[1734715445484,23.776884,190.71,190.65,26.37439726]
[1734715445788,26.37439726,190.78,190.69,26.37439726]
[1734715445989,26.37439726,190.76,190.69,26.37439726]
[1734715446286,26.37439726,190.76,190.67,26.37439726]
[1734715446489,26.37439726,190.74,190.65,157.97439726]
[1734715446668,26.37439726,190.72,190.65,26.37439726]
[1734715447365,26.37439726,190.72,190.63,32.47379726]
[1734715447605,23.776884,190.71,190.63,32.47379726]
[1734715448490,23.776884,190.71,190.65,26.37439726]
[1734715448691,26.37439726,190.76,190.67,26.37439726]
[1734715448874,26.37439726,190.76,190.69,26.37439726]
[1734715449221,26.37439726,190.78,190.69,26.37439726]
[1734715449489,26.37439726,190.76,190.69,26.37439726]
[1734715450575,2.11760159,190.84,190.66,13.1117]
[1734715450576,26.37439726,190.8,190.71,26.37439726]
[1734715450780,26.37439726,190.82,190.73,26.37439726]
[1734715451773,26.37439726,190.82,190.75,26.37439726]
[1734715452178,23.776884,190.81,190.73,26.37439726]
[1734715452683,26.37439726,190.84,190.77,26.37439726]
[1734715452887,26.37439726,190.86,190.77,26.37439726]
[1734715453281,26.37439726,190.84,190.75,157.97439726]
[1734715453488,41.0,190.87,190.73,6.4667]
[1734715453489,26.37439726,190.82,190.73,32.84109726]
[1734715454190,23.776884,190.81,190.73,32.84109726]
[1734715454432,26.37439726,190.8,190.73,32.84109726]
[1734715454694,23.776884,190.79,190.73,32.84109726]
[1734715455197,26.37439726,190.8,190.7,1.6318]
[1734715455198,23.776884,190.77,190.7,1.6318]
[1734715455993,23.776884,190.77,190.69,26.37439726]
[1734715457193,23.776884,190.77,190.71,26.37439726]
[1734715459413,26.37439726,190.8,190.73,26.37439726]
[1734715459608,26.37439726,190.84,190.75,26.37439726]
[1734715460099,26.37439726,190.84,190.77,26.37439726]
[1734715460504,26.37439726,190.84,190.75,26.37439726]
[1734715461288,26.37439726,190.86,190.79,26.37439726]
[1734715461915,26.37439726,190.84,190.75,27.99589726]
[1734715462910,26.37439726,190.86,190.77,26.37439726]
[1734715463116,23.776884,190.85,190.77,26.37439726]
[1734715463614,26.37439726,190.86,190.75,1.6215]
[1734715463615,26.37439726,190.88,190.79,26.37439726]
[1734715464435,1.5735,190.89,190.76,13.1054]
[1734715464436,26.37439726,190.9,190.81,26.37439726]
[1734715465435,26.37439726,190.92,190.83,26.37439726]
[1734715466138,26.37439726,190.92,190.85,26.37439726]
[1734715466993,26.37439726,190.9,190.81,157.97439726]
[1734715467195,26.37439726,190.88,190.81,157.97439726]
[1734715468749,26.37439726,190.9,190.81,157.97439726]
[1734715469248,26.37439726,190.92,190.83,26.37439726]
[1734715470850,26.37439726,190.94,190.85,26.37439726]
[1734715472039,26.37439726,190.9,190.81,26.37439726]
[1734715472535,26.37439726,190.9,190.79,0.78583899]
[1734715472536,26.37439726,190.94,190.85,26.37439726]
[1734715472721,26.37439726,190.96,190.85,157.97439726]
[1734715473818,26.37439726,190.96,190.85,159.48659726]
[1734715474017,26.37439726,190.98,190.85,172.58569726]
[1734715474229,26.37439726,190.98,190.86,6.3043]
[1734715475326,13.0891,191.0,190.86,6.3043]
[1734715475327,35.38374776,190.87,190.86,137.9043]
[1734715475535,26.37439726,191.02,190.87,13.0979]
[1734715475742,26.37439726,191.02,190.94,26.37439726]
[1734715476830,26.37439726,191.04,190.94,26.37439726]
[1734715477438,26.37439726,191.02,190.91,33.8798808]
[1734715477740,26.37439726,191.06,190.98,26.37439726]
[1734715477946,26.37439726,191.08,191.0,26.37439726]
[1734715478127,0.6776967,191.09,191.02,26.37439726]
[1734715480144,0.6776967,191.09,191.04,26.37439726]
[1734715482048,0.6776967,191.09,191.06,26.37439726]
[1734715482338,0.6776967,191.09,191.04,26.37439726]
[1734715482749,0.6776967,191.09,191.06,26.37439726]
[1734715482925,0.6776967,191.09,191.08,26.37439726]
[1734715483119,0.6776967,191.09,191.08,157.97439726]
[1734715484147,26.37439726,191.24,191.08,184.34879452]
[1734715484346,1.5065,191.25,191.17,26.37439726]
[1734715485346,26.37439726,191.28,191.19,26.37439726]
[1734715486057,26.37439726,191.28,191.17,157.97439726]
[1734715486230,26.37439726,191.24,191.15,157.97439726]
[1734715486428,26.37439726,191.22,191.13,26.37439726]
[1734715486750,23.776884,191.21,191.13,26.37439726]
[1734715487259,13.7468967,191.29,191.12,6.1604]
[1734715487260,23.776884,191.19,191.12,6.1604]
[1734715488850,23.776884,191.19,191.13,26.37439726]
[1734715489448,23.776884,191.19,191.11,26.37439726]
[1734715489634,26.37439726,191.16,191.09,26.37439726]
[1734715489843,23.776884,191.15,191.09,26.37439726]
[1734715490150,26.37439726,191.14,191.05,26.37439726]
[1734715490345,23.776884,191.13,191.09,26.37439726]
[1734715490524,23.776884,191.13,191.05,131.6]
[1734715490729,28.01589726,191.19,191.11,26.37439726]
[1734715490927,23.776884,191.18,191.11,26.37439726]
[1734715491352,23.776884,191.18,191.09,26.37439726]
[1734715491727,23.776884,191.16,191.09,26.37439726]
[1734715492136,23.776884,191.16,191.07,26.37439726]
[1734715492828,23.776884,191.14,191.07,26.37439726]
[1734715495052,20.0,191.16,191.11,26.37439726]
[1734715495955,28.01589726,191.19,191.11,26.37439726]
[1734715496269,23.776884,191.18,191.11,26.37439726]
[1734715497154,23.776884,191.18,191.09,26.37439726]
[1734715497652,23.776884,191.16,191.09,26.37439726]
[1734715498337,26.37439726,191.15,191.07,26.37439726]
[1734715498751,23.776884,191.14,191.05,26.37439726]
[1734715499061,23.776884,191.14,191.09,26.37439726]
[1734715499226,28.01589726,191.19,191.11,26.37439726]
[1734715499952,26.37439726,191.17,191.09,26.37439726]
[1734715500143,23.776884,191.16,191.07,26.37439726]
[1734715500335,23.776884,191.14,191.07,26.37439726]
[1734715501938,23.776884,191.14,191.05,131.6]
[1734715501939,23.776884,191.14,191.05,157.97439726]
[1734715502860,23.776884,191.14,191.07,26.37439726]
[1734715503171,20.0,191.16,191.11,26.37439726]
[1734715503333,1.6415,191.19,191.11,26.37439726]
[1734715503549,28.01589726,191.19,191.11,26.37439726]
[1734715503840,28.01589726,191.19,191.09,26.37439726]
[1734715504044,26.37439726,191.17,191.09,26.37439726]
[1734715504262,23.776884,191.16,191.11,26.37439726]
[1734715504439,27.92209726,191.24,191.15,26.37439726]
[1734715504765,27.92209726,191.28,191.18,26.37439726]
[1734715505064,0.6776967,191.29,191.24,26.37439726]
[1734715506350,0.6776967,191.29,191.22,26.37439726]
[1734715506850,23.776884,191.28,191.22,26.37439726]
[1734715509237,50.15128126,191.28,191.18,26.37439726]
[1734715509437,26.37439726,191.24,191.16,26.37439726]
[1734715509672,23.776884,191.25,191.18,26.37439726]
[1734715509852,0.6776967,191.29,191.24,26.37439726]
[1734715510979,0.6776967,191.29,191.22,157.97439726]
[1734715510980,23.776884,191.28,191.22,157.97439726]
[1734715514765,0.6776967,191.29,191.26,26.37439726]
[1734715515070,0.6776967,191.29,191.28,26.37439726]
[1734715516666,9.67e-05,191.29,191.28,39.44419726]
[1734715519145,9.67e-05,191.29,191.28,26.37439726]
[1734715521678,9.67e-05,191.29,191.28,27.15823324]
[1734715522947,9.67e-05,191.29,191.28,185.1326305]
[1734715523163,26.37439726,191.44,191.31,20.0]
[1734715523345,26.37439726,191.44,191.36,26.37439726]
[1734715524041,34.25419726,191.46,191.38,26.37439726]
[1734715524240,0.6776967,191.48,191.35,20.0]
[1734715524446,0.6776967,191.48,191.46,26.37439726]
[1734715524758,0.6776967,191.48,191.44,26.37439726]
[1734715526054,0.6776967,191.48,191.42,26.37439726]
[1734715526247,23.776884,191.47,191.4,26.37439726]
[1734715526651,50.15128126,191.47,191.38,26.37439726]
[1734715527546,23.776884,191.44,191.36,26.37439726]
[1734715528161,23.776884,191.44,191.34,26.37439726]
[1734715528162,26.37439726,191.43,191.34,26.37439726]
[1734715528475,23.776884,191.42,191.34,26.37439726]
[1734715529176,23.776884,191.37,191.3,26.37439726]
[1734715529476,23.776884,191.41,191.34,26.37439726]
[1734715529666,26.37439726,191.4,191.32,26.37439726]
[1734715529851,23.776884,191.41,191.34,26.37439726]
[1734715530050,23.776884,191.41,191.36,26.37439726]
[1734715530665,27.05209396,191.48,191.4,26.37439726]
[1734715530865,26.37439726,191.45,191.38,26.37439726]
[1734715531177,26.37439726,191.45,191.36,26.37439726]
[1734715532381,23.776884,191.44,191.36,26.37439726]
[1734715533556,23.776884,191.44,191.38,26.37439726]
[1734715533772,26.37439726,191.47,191.38,26.37439726]
[1734715536308,23.776884,191.46,191.38,26.37439726]
[1734715536999,23.776884,191.46,191.4,26.37439726]
[1734715537185,50.15128126,191.47,191.38,46.37439726]
[1734715538474,26.37439726,191.45,191.36,26.37439726]
[1734715538675,23.776884,191.44,191.36,26.37439726]
[1734715539070,23.776884,191.42,191.36,26.37439726]
[1734715539269,23.776884,191.42,191.34,157.97439726]
[1734715539505,23.776884,191.42,191.36,26.37439726]
[1734715539720,26.37439726,191.45,191.36,26.37439726]
[1734715540002,23.776884,191.44,191.38,26.37439726]
[1734715540211,26.37439726,191.47,191.38,26.37439726]
[1734715540387,0.6776967,191.48,191.4,26.37439726]
[1734715540768,23.776884,191.47,191.4,26.37439726]
[1734715544509,50.15128126,191.47,191.38,26.37439726]
[1734715544710,26.37439726,191.45,191.38,26.37439726]
[1734715545910,50.15128126,191.47,191.38,26.37439726]
[1734715546431,23.776884,191.47,191.4,26.37439726]
[1734715548000,26.37439726,191.43,191.34,26.37439726]
[1734715548190,26.37439726,191.43,191.34,157.97439726]
[1734715548399,23.776884,191.44,191.38,26.37439726]
[1734715548920,46.37439726,191.47,191.38,26.37439726]
[1734715549292,23.776884,191.46,191.38,26.37439726]
[1734715550210,0.6776967,191.48,191.4,157.97439726]
[1734715550515,0.6776967,191.48,191.42,26.37439726]
[1734715551024,0.6776967,191.48,191.42,16.38345151]
[1734715551318,0.6776967,191.48,191.42,22.65835151]
[1734715551730,0.6776967,191.48,191.42,16.38345151]
[1734715551904,17.06114821,191.48,191.4,147.98345151]
[1734715552087,23.776884,191.47,191.4,131.6]
[1734715552705,23.776884,191.45,191.37,6.2749]
[1734715553020,23.776884,191.43,191.37,6.2749]
[1734715553424,16.38345151,191.46,191.38,16.38345151]
[1734715553609,23.776884,191.45,191.38,16.38345151]
[1734715554325,18.69844821,191.48,191.38,16.38345151]
[1734715555035,28.53805303,191.48,191.39,26.22305633]
[1734715555404,28.53805303,191.48,191.39,157.82305633]
[1734715555707,23.776884,191.47,191.39,157.82305633]
[1734715557257,26.22305633,191.46,191.39,157.82305633]
[1734715557412,26.22305633,191.46,191.39,131.6]
[1734715557808,26.22305633,191.44,191.37,6.2749]
[1734715558103,23.776884,191.43,191.36,131.6]
[1734715558304,23.776884,191.43,191.37,26.22305633]
[1734715560138,23.776884,191.43,191.36,131.6]
[1734715560334,26.22305633,191.42,191.35,26.22305633]
[1734715560533,23.776884,191.41,191.35,26.22305633]
[1734715561655,26.22305633,191.44,191.37,26.22305633]
[1734715561842,26.22305633,191.46,191.37,26.22305633]
[1734715562255,23.776884,191.45,191.37,26.22305633]
[1734715562453,23.776884,191.45,191.39,26.22305633]
[1734715562626,28.53805303,191.48,191.41,26.22305633]
[1734715562832,2.3149967,191.48,191.41,26.22305633]
[1734715563033,0.6776967,191.48,191.41,26.22305633]
[1734715563654,0.6776967,191.48,191.43,26.22305633]
[1734715565254,0.6776967,191.48,191.43,157.82305633]
[1734715565585,0.6776967,191.48,191.45,26.22305633]
[1734715567752,0.6776967,191.48,191.47,26.22305633]
[1734715569660,0.6776967,191.48,191.43,138.1726]
[1734715569661,0.6776967,191.48,191.43,157.82305633]
[1734715569873,0.6776967,191.48,191.43,131.6]
[1734715570951,0.6776967,191.48,191.43,157.82305633]
[1734715571641,0.6776967,191.48,191.45,26.22305633]
[1734715572171,0.6776967,191.48,191.43,157.82305633]
[1734715573544,0.61477653,191.48,191.43,157.82305633]
[1734715573749,0.61477653,191.48,191.45,26.22305633]
[1734715575046,0.61477653,191.48,191.44,16.38135169]
[1734715579074,0.61477653,191.48,191.46,16.38135169]
[1734715580074,0.61477653,191.48,191.44,16.38135169]
[1734715581875,0.61477653,191.48,191.44,147.98135169]
[1734715582099,0.61477653,191.48,191.44,131.6]
[1734715583781,0.61477653,191.48,191.44,147.98135169]
[1734715586051,0.61477653,191.48,191.46,16.38135169]
[1734715587282,0.61477653,191.48,191.46,147.98135169]
[1734715587480,0.61477653,191.48,191.47,138.70352806]
[1734715587783,0.61477653,191.48,191.47,150.9772]
[1734715589296,10.0,191.57,191.5,21.6396]
[1734715589457,10.0,191.57,191.55,16.38135169]
[1734715590263,10.0,191.57,191.56,6.5002]
[1734715591066,10.0,191.57,191.56,151.1509]
[1734715592377,10.0,191.57,191.56,6.5002]
[1734715592561,10.0,191.57,191.55,147.98135169]
[1734715593260,10.0,191.57,191.55,131.6]
[1734715594079,10.0,191.57,191.55,147.98135169]
[1734715595183,10.0,191.57,191.51,22.88125169]
[1734715596482,23.776884,191.56,191.49,16.38135169]
[1734715599282,23.776884,191.56,191.51,16.38135169]
[1734715599490,10.0,191.57,191.51,16.38135169]
[1734715601488,10.0,191.57,191.55,16.38135169]
[1734715602685,10.0,191.57,191.55,147.98135169]
[1734715603687,10.0,191.57,191.56,13.0507]
[1734715604592,0.6776967,191.67,191.59,20.0]
[1734715604890,0.6776967,191.67,191.6,29.42935169]
[1734715605083,17.05904839,191.67,191.6,29.42935169]
[1734715605697,23.776884,191.66,191.6,29.42935169]
[1734715606192,0.6776967,191.67,191.6,29.42935169]
[1734715606564,0.6776967,191.67,191.62,16.38135169]
[1734715608501,0.6776967,191.67,191.64,16.38135169]
[1734715609270,0.6776967,191.67,191.65,13.0446]
[1734715609470,0.6776967,191.67,191.66,16.38135169]
[1734715610567,9.67e-05,191.67,191.66,16.38135169]
[1734715611408,0.6776967,191.86,191.66,32.76270338]
[1734715611581,0.6776967,191.86,191.7,20.0]
[1734715611582,17.93815169,191.85,191.7,20.0]
[1734715611799,1.5568,191.85,191.76,16.38135169]
[1734715612017,16.38135169,191.84,191.76,16.38135169]
[1734715612196,16.38135169,191.8,191.71,0.78201396]
[1734715612375,16.38135169,191.8,191.71,16.38135169]
[1734715613389,23.776884,191.84,191.71,16.38135169]
[1734715613591,14.5878,191.85,191.71,16.38135169]
[1734715613592,23.776884,191.8,191.71,16.38135169]
[1734715614280,23.776884,191.78,191.71,16.38135169]
[1734715617890,16.38135169,191.81,191.73,16.38135169]
[1734715619228,23.776884,191.8,191.73,16.38135169]
[1734715619579,16.38135169,191.81,191.73,16.38135169]
[1734715620590,23.776884,191.8,191.71,16.38135169]
[1734715620794,23.776884,191.76,191.69,16.38135169]
[1734715621021,23.776884,191.78,191.71,16.38135169]
[1734715621707,16.38135169,191.81,191.73,16.38135169]
[1734715621900,23.776884,191.8,191.73,16.38135169]
[1734715622281,16.38135169,191.81,191.73,16.38135169]
[1734715622498,16.38135169,191.83,191.75,16.38135169]
[1734715622887,17.93815169,191.85,191.77,16.38135169]
[1734715623202,0.6776967,191.86,191.79,16.38135169]
[1734715623789,0.6776967,191.86,191.81,16.38135169]
[1734715623997,0.6776967,191.86,191.83,16.38135169]
[1734715626703,0.6776967,191.86,191.81,16.38135169]
[1734715626890,17.05904839,191.86,191.78,6.1426]
[1734715627091,23.776884,191.85,191.78,6.1426]
[1734715627401,23.776884,191.85,191.75,16.38135169]
[1734715627402,40.15823569,191.85,191.75,16.38135169]
[1734715627582,40.15823569,191.85,191.71,16.38135169]
[1734715627583,23.776884,191.8,191.71,16.38135169]
[1734715627782,16.38135169,191.77,191.69,147.98135169]
[1734715628005,23.776884,191.76,191.69,16.38135169]
[1734715628397,23.776884,191.76,191.67,16.38135169]
[1734715628606,23.776884,191.74,191.67,16.38135169]
[1734715629192,23.776884,191.76,191.69,16.38135169]
[1734715630006,23.776884,191.76,191.71,16.38135169]
[1734715630210,23.776884,191.78,191.71,16.38135169]
[1734715630902,16.38135169,191.77,191.69,16.38135169]
[1734715631284,23.776884,191.76,191.69,16.38135169]
[1734715631791,16.38135169,191.75,191.67,16.38135169]
[1734715631995,16.38135169,191.73,191.65,16.38135169]
[1734715632193,23.776884,191.72,191.63,16.38135169]
[1734715632587,23.776884,191.72,191.65,16.38135169]
[1734715632810,23.776884,191.72,191.67,16.38135169]
[1734715633005,16.38135169,191.75,191.67,16.38135169]
[1734715633211,23.776884,191.74,191.67,16.38135169]
[1734715633405,23.776884,191.72,191.65,16.38135169]
[1734715633890,23.776884,191.72,191.67,16.38135169]
[1734715634213,23.776884,191.72,191.65,16.38135169]
[1734715634690,23.776884,191.74,191.67,16.38135169]
[1734715635111,23.776884,191.74,191.65,16.38135169]
[1734715635308,23.776884,191.72,191.65,16.38135169]
[1734715637615,16.38135169,191.75,191.67,16.38135169]
[1734715637797,16.38135169,191.79,191.69,16.38135169]
[1734715637997,16.38135169,191.77,191.69,16.38135169]
[1734715638614,16.38135169,191.75,191.67,16.38135169]
[1734715640224,23.776884,191.74,191.67,16.38135169]
[1734715642224,16.38135169,191.75,191.67,16.38135169]
[1734715642410,16.38135169,191.81,191.73,16.38135169]
[1734715642611,17.90505169,191.83,191.75,16.38135169]
[1734715642795,1.5237,191.83,191.75,16.38135169]
[1734715643001,16.38135169,191.85,191.77,16.38135169]
[1734715643527,16.38135169,191.85,191.75,16.38135169]
[1734715643725,16.38135169,191.85,191.77,16.38135169]
[1734715643902,18.00735169,191.87,191.77,16.38135169]
[1734715644101,23.776884,191.85,191.77,16.38135169]
[1734715644319,18.00735169,191.87,191.79,16.38135169]
[1734715644634,16.38135169,191.91,191.81,16.38135169]
[1734715645329,16.38135169,191.89,191.81,16.38135169]
[1734715646531,16.38135169,191.87,191.79,147.98135169]
[1734715647505,23.776884,191.85,191.79,147.98135169]
[1734715648028,23.776884,191.85,191.79,16.38135169]
[1734715648203,23.776884,191.85,191.77,16.38135169]
[1734715648623,40.15823569,191.85,191.77,16.38135169]
[1734715649636,23.776884,191.85,191.77,16.38135169]
[1734715650153,40.15823569,191.85,191.77,16.38135169]
[1734715650528,16.38135169,191.89,191.81,16.38135169]
[1734715650728,16.38135169,191.89,191.79,16.38135169]
[1734715650949,16.38135169,191.87,191.79,16.38135169]
[1734715651739,16.38135169,191.87,191.77,147.98135169]
[1734715651943,16.38135169,191.85,191.77,147.98135169]
[1734715652138,40.15823569,191.85,191.77,147.98135169]
[1734715653253,40.15823569,191.85,191.77,16.38135169]
[1734715655532,23.776884,191.82,191.75,16.38135169]
[1734715655729,16.38135169,191.85,191.77,16.38135169]
[1734715656040,16.38135169,191.87,191.79,147.98135169]
[1734715656549,23.776884,191.85,191.79,131.6]
[1734715656756,40.15823569,191.85,191.79,131.6]
[1734715657459,16.38135169,191.83,191.79,131.6]
[1734715658041,16.38135169,191.81,191.73,16.38135169]
[1734715658254,16.38135169,191.77,191.69,153.99075169]
[1734715658449,23.776884,191.74,191.67,16.38135169]
[1734715658930,16.38135169,191.77,191.69,16.38135169]
[1734715659135,16.38135169,191.75,191.67,16.38135169]
[1734715659337,16.38135169,191.73,191.65,154.54795169]
[1734715661146,16.38135169,191.77,191.69,16.38135169]
[1734715661346,23.776884,191.76,191.69,16.38135169]
[1734715661963,16.38135169,191.75,191.67,16.38135169]
[1734715662335,23.776884,191.74,191.67,16.38135169]
[1734715664163,16.38135169,191.75,191.67,16.38135169]
[1734715664341,16.38135169,191.77,191.69,16.38135169]
[1734715665664,16.38135169,191.77,191.69,6.38135169]
[1734715665863,16.38135169,191.78,191.7,147.98135169]
[1734715666971,16.38135169,191.8,191.72,16.38135169]
[1734715667153,16.38135169,191.78,191.7,131.6]
[1734715667467,16.38135169,191.76,191.7,131.6]
[1734715669063,16.38135169,191.76,191.68,16.38135169]
[1734715669365,16.38135169,191.78,191.7,16.38135169]
[1734715672572,16.38135169,191.8,191.72,16.38135169]
[1734715672871,16.38135169,191.78,191.7,16.38135169]
[1734715673059,16.38135169,191.76,191.68,16.38135169]
[1734715674959,16.38135169,191.78,191.7,16.38135169]
[1734715676869,16.38135169,191.8,191.72,16.38135169]
[1734715677072,1.5828,191.84,191.76,16.38135169]
[1734715677263,16.38135169,191.84,191.76,16.38135169]
[1734715678402,16.38135169,191.84,191.76,147.98135169]
[1734715679184,17.05904839,191.86,191.76,147.98135169]
[1734715679371,16.38135169,191.84,191.76,147.98135169]
[1734715680182,23.776884,191.83,191.76,131.6]
[1734715680366,16.38135169,191.84,191.76,147.98135169]
[1734715681481,0.6776967,191.86,191.78,147.98135169]
[1734715681788,0.6776967,191.86,191.82,16.38135169]
[1734715682171,0.6776967,191.86,191.84,16.38135169]
[1734715683482,0.6776967,191.86,191.84,154.35125169]
[1734715683983,0.6776967,191.86,191.85,13.81257668]
[1734715684287,0.6776967,191.86,191.85,15.31457668]
[1734715684463,0.6776967,191.86,191.85,1.502]
[1734715684665,0.6776967,191.86,191.84,154.35125169]
[1734715685584,0.6776967,191.86,191.82,16.38135169]
[1734715685883,0.6776967,191.86,191.8,17.90765169]
[1734715686277,0.6776967,191.86,191.84,16.38135169]
[1734715687071,0.6776967,191.86,191.84,147.98135169]
[1734715690186,0.6776967,191.86,191.84,148.03135169]
[1734715691058,0.6776967,191.86,191.84,161.06245169]
[1734715691464,0.6776967,191.86,191.85,0.78153161]
[1734715692195,0.6776967,191.86,191.84,161.06245169]
[1734715692688,0.6776967,191.86,191.85,0.78153029]
[1734715693467,0.6776967,191.86,191.84,161.06245169]
[1734715694189,0.6776967,191.86,191.85,0.781566]
[1734715696294,0.6776967,191.86,191.85,138.574466]
[1734715696467,0.6776967,191.86,191.85,137.7929]
[1734715699379,0.6776967,191.86,191.85,154.17425169]
[1734715703796,14.5365,192.0,191.88,151.6]
[1734715703797,16.38135169,191.97,191.88,151.6]
[1734715704006,1.5152,192.0,191.94,16.38135169]
[1734715704303,1.5152,192.0,191.93,16.38135169]
[1734715705003,1.5152,192.0,191.94,10.42924695]
[1734715705702,11.94444695,192.0,191.92,10.42924695]
[1734715706001,10.42924695,191.96,191.87,10.42924695]
[1734715706502,10.42924695,191.92,191.84,10.47924695]
[1734715706793,10.42924695,191.9,191.84,0.05]
[1734715707002,43.776884,191.95,191.85,16.30999944]
[1734715707178,16.30999944,191.95,191.87,16.30999944]
[1734715707380,23.776884,191.94,191.87,16.30999944]
[1734715708198,16.30999944,191.95,191.87,147.90999944]
[1734715710720,16.30999944,191.91,191.84,0.05]
[1734715710919,16.30999944,191.89,191.84,0.05]
[1734715711599,16.30999944,191.87,191.84,0.05]
[1734715711782,20.0,191.93,191.84,0.05]
[1734715712028,16.30999944,191.91,191.84,0.05]
[1734715712382,16.30999944,191.89,191.84,0.05]
[1734715713610,14.6801,191.96,191.87,16.30999944]
[1734715713611,1.6559,191.96,191.87,16.30999944]
[1734715713817,17.96589944,191.96,191.87,16.30999944]
[1734715714017,17.96589944,191.96,191.89,16.30999944]
[1734715715586,17.96589944,191.96,191.86,0.78148306]
[1734715715893,17.96589944,191.96,191.87,16.30999944]
[1734715716124,16.30999944,191.94,191.85,160.94099944]
[1734715717338,23.776884,191.95,191.87,16.30999944]
[1734715718126,16.30999944,191.94,191.87,16.30999944]
[1734715719218,16.30999944,191.9,191.84,0.05]
[1734715719524,16.30999944,191.92,191.84,0.05]
[1734715721445,16.30999944,191.94,191.85,147.90999944]
[1734715723748,17.90311057,191.96,191.87,16.30999944]
[1734715723928,16.30999944,191.96,191.89,16.30999944]
[1734715724119,16.30999944,191.98,191.89,148.69140166]
[1734715724318,16.30999944,191.98,191.9,0.78134239]
[1734715724514,19.1902785,192.09,191.97,16.30999944]
[1734715724747,29.41137794,192.09,192.0,16.30999944]
[1734715724930,17.82759944,192.09,192.0,16.30999944]
[1734715725247,16.30999944,192.09,192.0,147.90999944]
[1734715725444,24.35136876,192.11,192.02,16.30999944]
[1734715725610,16.30999944,192.13,192.04,16.30999944]
[1734715725812,16.30999944,192.13,192.04,17.09087234]